[Event "11th Festival Palmanova-A 2022"]
[Site "Strassoldo"]
[Date "2022.12.10"]
[Round "5.2"]
[White "Lekic, Dusan"]
[Black "Casadio, Niccolo`"]
[Result "1/2-1/2"]
[ECO "C11"]
[WhiteElo "2329"]
[BlackElo "2095"]
[Annotator "TA"]
[PlyCount "76"]
[EventDate "2022.12.08"]
[EventType "swiss"]
[EventCountry "ITA"]
[SourceTitle "playchess.com"]
[Source "ChessBase"]
[SourceQuality "1"]
[TimeControl "5400+30"]

{[%evp 20,76,39,36,39,43,45,45,57,45,49,60,48,11,20,-15,-12,-12,-29,-22,-21,-85,-18,-27,50,-133,-133,-116,-135,-134,-109,-277,-285,-282,-272,-334,-167,-172,-162,-183,-179,-158,-150,-144,-39,-41,-41,-41,-45,-68,-27,-81,-22,-41,-38,-46,-5,-35,-20]} 1. d4 {[%emt 0:00:17]} e6 {[%emt 0:00:07]} 2. e4 {[%emt 0:00:35]} d5 {[%emt 0:00:10]} 3. Nc3 {[%emt 0:00:10]} Nf6 {[%emt 0:00:10]} 4. e5 {[%emt 0:00:14]} Nfd7 {[%emt 0:00:04]} 5. f4 {[%emt 0:00:11]} c5 {[%emt 0:00:06]} 6. Nf3 {[%emt 0:00:07]} Nc6 {[%emt 0:00:03]} 7. Be3 {[%emt 0:00:14]} Qb6 {[%emt 0:00:09]} 8. Na4 {[%emt 0:01:38]} Qa5+ {[%emt 0:00:05]} 9. c3 {[%emt 0:00:13]} b6 {[%emt 0:00:10]} 10. Bd2 {[%emt 0:08:56]} c4 {[%emt 0:00:12]} 11. b4 {[%emt 0:14:52]} Nxb4 {[%emt 0:00:12] C11: French: Classical System: 4 e5 and 4 Bg5 dxe4.} 12. cxb4 {[%emt 0:00:07]} Bxb4 {[%emt 0:00:04]} 13. Qc2 {[%emt 0:03:07] Threatens to win with Nc3.} Bxd2+ {[%emt 0:00:10] White is slightly better.} 14. Nxd2 {[%emt 0:02:05]} b5 {[%emt 0:00:04]} 15. Nc3 {[%emt 0:02:00][%cal Ba4c3,Bc3b5,Bb5d6][%mdl 32]} b4 {[%emt 0:00:05] 15...0-0 is not played anymore.} 16. Qa4 {[%emt 0:01:52]} Qb6 {[%emt 0:06:33]} 17. Nb5 {[%emt 0:00:48]} O-O {[%emt 0:00:29][%mdl 1024] Black has compensation.} 18. Nf3 $1 {[%emt 0:00:34]} (18. Qxb4 $2 a6 19. Be2 axb5 $19) 18... Nb8 {[%emt 0:01:02] aiming for ...Bd7.} 19. Nd6 $1 {[%emt 0:03:03]} (19. Qxb4 $2 a6 20. Qa3 (20. Bxc4 $2 dxc4 21. Qa3 Qxb5 $19) 20... Qxb5 $19) 19... Nc6 {[%emt 0:00:33]} 20. Rd1 {[%emt 0:09:37] [#]} (20. Qd1 $11) 20... Bd7 {[%emt 0:00:13]} (20... a5 $1 $17) 21. Qc2 $11 {[%emt 0:00:14][%cal Of1c4]} a5 {[%emt 0:00:43] [#]} (21... f6 $11) 22. h4 $146 {[%emt 0:08:45]} (22. Ng5 $14 g6 {[#]} 23. Bxc4 $1) ({Predecessor:} 22. Be2 b3 23. Qc3 bxa2 24. Ra1 Rfb8 25. Kf2 Qb2 26. Rhc1 a4 27. Qc2 a3 28. Rxa2 Qxc2 29. Raxc2 {0-1 (38) Dobrovoljc,V (2344)-Gavrilescu,D (2451) Bad Blankenburg 2018}) 22... b3 $17 {[%emt 0:03:19]} 23. axb3 {[%emt 0:04:00]} cxb3 {[%emt 0:02:18]} 24. Qb1 {[%emt 0:08:24]} f5 {[%emt 0:04:26] Strongly threatening ...a4.} 25. exf6 $2 {[%emt 0:15:13]} (25. g4 $17) 25... Qb4+ $19 {[%emt 0:09:06]} 26. Kf2 {[%emt 0:00:38]} (26. Rd2 Rxf6 27. Nb5 a4) 26... Qxd6 {[%emt 0:01:55]} 27. fxg7 {[%emt 0:01:13]} Rf7 {[%emt 0:01:24]} (27... Kxg7 $2 {too greedy.} 28. g3 $19) (27... Rxf4 $142 28. Qxb3 Rg4) 28. Qxb3 {[%emt 0:05:52]} Qxf4 {[%emt 0:00:27]} 29. Qe3 {[%emt 0:02:29]} Qxe3+ {[%emt 0:01:50]} ({Worse is} 29... Kxg7 30. Qxf4 Rxf4 31. Bb5 $17) 30. Kxe3 {[%emt 0:00:01]} Rxg7 {[%emt 0:00:15]} 31. Bb5 {[%emt 0:01:21]} Rb8 {[%emt 0:01:27]} ({And not} 31... Rxg2 32. Rc1 $17) ({Black should try} 31... a4 $17 {Hoping for ...Nb4.} 32. Bxc6 Bxc6) 32. Rb1 $15 {[%emt 0:00:50] Black must now prevent Bxc6.} Nb4 {[%emt 0:05:37]} 33. Bxd7 {[%emt 0:00:32]} Rxd7 {[%emt 0:00:05]} 34. Rhc1 {[%emt 0:00:35]} Rg7 {[%emt 0:01:48]} (34... Nc2+ $5 35. Kd2 Rxb1 36. Rxb1 Na3 37. Rb8+ Kg7 $17) 35. Rb2 {[%emt 0:00:36]} (35. Ne5 $1 $11) 35... Ra7 {[%emt 0:02:59]} (35... Rg4 $17) 36. Ra1 {[%emt 0:00:48]} Rbb7 {[%emt 0:02:14]} 37. Ne5 {[%emt 0:01:28]} Rc7 {[%emt 0:00:24] And now ...Nc2+ would win.} 38. Ra4 {[%emt 0:02:04]} Kg7 {[%emt 0:00:31] And White is the lucky defender.   Weighted Error Value: White=0.29 (precise) /Black=0.30} 1/2-1/2

[Event "11th Festival Palmanova-A 2022"]
[Site "Strassoldo"]
[Date "2022.12.10"]
[Round "5.3"]
[White "Neuschmied, Siegfried"]
[Black "Zuttioni, Federico"]
[Result "0-1"]
[ECO "B30"]
[WhiteElo "2244"]
[BlackElo "2165"]
[Annotator "TA"]
[PlyCount "118"]
[EventDate "2022.12.08"]
[EventType "swiss"]
[EventCountry "ITA"]
[SourceTitle "playchess.com"]
[Source "ChessBase"]
[SourceQuality "1"]
[TimeControl "5400+30"]

{[%evp 9,118,24,29,35,42,24,32,23,22,25,51,42,39,18,11,11,26,28,51,28,75,32,67,54,35,0,0,-4,0,-41,-40,-48,-15,-18,12,30,44,40,29,12,0,0,7,0,0,-43,0,-58,-55,-65,-56,-139,-15,-30,-39,-89,-46,-56,-66,-45,0,0,0,0,64,0,72,76,55,45,233,216,291,283,288,283,213,221,214,214,231,233,245,239,253,223,261,243,255,264,276,265,270,256,325,166,208,189,184,168,248,99,109,86,100,-8,-8,-8,-8,-134,-77]} 1. e4 {[%emt 0:01:26]} c5 {[%emt 0:00:54]} 2. Nf3 {[%emt 0:00:30]} Nc6 {[%emt 0:00:18]} 3. Bb5 {[%emt 0:00:15]} Nf6 {[%emt 0:00:14]} 4. Bxc6 {[%emt 0:04:51]} dxc6 {[%emt 0:00:19]} 5. d3 {[%emt 0:00:27]} g6 {[%emt 0:02:00]} 6. Be3 {[%emt 0:05:59] B30: Sicilian: 2...Nc6 3 Bb5, lines without ...g6.} c4 {[%emt 0:09:21]} 7. h3 {[%emt 0:04:02]} (7. dxc4 Qxd1+ 8. Kxd1 Nxe4 $15) 7... cxd3 {[%emt 0:01:09]} 8. cxd3 {[%emt 0:00:05] White is slightly better.} Bg7 {[%emt 0:00:28][%cal Of6e4]} 9. Nc3 {[%emt 0:00:11]} O-O {[%emt 0:00:39]} 10. d4 {[%emt 0:01:05] [#]} b5 $146 {[%emt 0:02:53]} ({Predecessor:} 10... Qa5 11. O-O h6 12. a3 Be6 13. b4 Qh5 14. Ne5 Qh4 15. Nf3 Qh5 16. Ne5 Qxd1 17. Rfxd1 {½-½ (35) Ehret,T (2058)-Vatter,H (2236) Germany 2016}) 11. a3 {[%emt 0:02:19]} a5 {[%emt 0:01:30]} 12. O-O {[%emt 0:00:26]} Be6 {[%emt 0:03:37]} 13. Qc2 {[%emt 0:02:14]} Rc8 {[%emt 0:08:28]} 14. Rfe1 {[%emt 0:15:41]} (14. a4 {looks sharper.} Nh5 15. Ng5 Bc4 16. Rfd1) 14... h6 {[%emt 0:06:13]} (14... a4 $11) 15. Rad1 {[%emt 0:04:19]} Kh7 {[%emt 0:04:25]} 16. Ne2 {[%emt 0:03:27]} (16. a4 {with more complications.} Qd7 17. Ne5 Qc7 18. f3) 16... a4 {[%emt 0:05:15]} 17. Rc1 {[%emt 0:00:14]} Nd7 {[%emt 0:03:20]} 18. Nf4 {[%emt 0:07:05]} Bb3 {[%emt 0:00:22]} 19. Qd3 {[%emt 0:03:51]} e5 {[%emt 0:08:18]} 20. Ne2 {[%emt 0:02:57]} Nb6 {[%emt 0:01:07]} (20... Bc4 $5 {[%cal Rc4d3]} 21. Rxc4 bxc4 22. Qxc4 Qb6 $15) 21. Qc3 {[%emt 0:01:25]} exd4 {[%emt 0:09:51]} (21... Re8 $5 {[%cal Rb6c4]}) 22. Bxd4 {[%emt 0:00:06]} Bxd4 {[%emt 0:00:17]} 23. Nexd4 {[%emt 0:00:11] Pair of Knights!} (23. Qxd4 Re8 $11) 23... Bc4 {[%emt 0:01:30]} 24. Rcd1 {[%emt 0:03:04][%cal Od4f5] aiming for Nf5!} Qc7 {[%emt 0:00:56]} 25. Nh2 {[%emt 0:03:27]} c5 {[%emt 0:03:00]} 26. Ndf3 {[%emt 0:00:27] Black must now prevent Ng4.} Be6 {[%emt 0:01:33]} 27. h4 {[%emt 0:01:21][%cal Oh4h5]} Qe7 {[%emt 0:05:43]} 28. Rd2 {[%emt 0:02:02]} (28. Nf1 $11) 28... Nc4 $15 {[%emt 0:00:59] And now ...b4 would win.} 29. Rde2 {[%emt 0:00:23]} Rfd8 {[%emt 0:02:15]} 30. Qc1 {[%emt 0:06:48]} ({White should play} 30. e5 $15) 30... b4 {[%emt 0:01:24] Black is more active.} (30... Rd3 $1 $17 {Threatening ...Rcd8.} 31. Nf1 Rxf3 $1 32. gxf3 Qxh4) 31. Rc2 {[%emt 0:01:19]} Nb6 {[%emt 0:02:05]} 32. Qf4 {[%emt 0:03:27]} (32. Nf1 $15) 32... Kg7 {[%emt 0:05:43]} 33. Ng4 {[%emt 0:07:12]} Bxg4 {[%emt 0:00:15]} 34. Qxg4 {[%emt 0:00:01]} bxa3 {[%emt 0:01:18]} (34... b3 $5 {[%cal Rb3c2]} 35. Rc3 c4 $11) 35. bxa3 {[%emt 0:00:08]} Rd3 {[%emt 0:00:25]} 36. h5 {[%emt 0:01:23]} Rc6 {[%emt 0:02:49]} (36... Qe6 $11 37. Qxe6 fxe6) 37. Qf4 {[%emt 0:03:31]} (37. hxg6 $14 Rxg6 38. Qf4) 37... Rxa3 {[%emt 0:01:29]} (37... g5 $11 38. Qe5+ Qf6 39. Rxc5 Rxc5 40. Qxc5 Nd7) 38. hxg6 $16 {[%emt 0:00:55]} fxg6 {[%emt 0:00:42]} (38... Rxg6 $2 39. Nh4 Rg5 40. Qc1 $18 (40. Nf5+ Rxf5 41. Qxf5 c4 $16)) 39. Ne5 {[%emt 0:01:23]} Rf6 {[%emt 0:02:27]} (39... Rc8 $1 $14) 40. Qc1 $1 $18 {[%emt 0:00:11][%csl LRa3,LRc5] Hoping for Ng4.} Qxe5 {[%emt 0:01:41]} 41. Qxa3 {[%emt 0:00:25]} c4 {[%emt 0:00:48]} 42. Qb4 {[%emt 0:00:14]} h5 {[%emt 0:01:29]} 43. Qc3 {[%emt 0:03:57] Prevents h4.} Qxc3 {[%emt 0:01:46]} 44. Rxc3 {[%emt 0:00:01][%mdl 4096] Endgame KRR-KRN} Kf7 {[%emt 0:00:22]} 45. Rb1 {[%emt 0:00:22]} Ke7 {[%emt 0:00:36]} 46. Kf1 {[%emt 0:00:21]} Kd7 {[%emt 0:00:10]} 47. Rb5 {[%emt 0:00:49]} Kc6 {[%emt 0:00:43]} 48. Ra5 {[%emt 0:00:10]} Re6 {[%emt 0:00:50]} 49. f3 {[%emt 0:00:07]} Rd6 {[%emt 0:00:31]} 50. Ke2 {[%emt 0:00:02] Inhibits Rd1.} Rd8 {[%emt 0:00:28]} 51. Rg5 {[%emt 0:01:02]} Rd4 {[%emt 0:00:34]} 52. Ke3 {[%emt 0:00:41]} ({Resist} 52. Rxg6+ Kb5 53. Rc1 Rd3 $18) (52. Rc1 $142) 52... Rd6 {[%emt 0:00:20]} 53. Ra5 {[%emt 0:00:19]} Rd1 {[%emt 0:00:22]} 54. Kf4 {[%emt 0:00:45]} Rb1 {[%emt 0:00:30]} (54... Rd2 $142) 55. Rc2 {[%emt 0:00:25]} (55. Kg5 $18) 55... Rb5 $16 {[%emt 0:00:42]} 56. Rxb5 {[%emt 0:05:05]} Kxb5 {[%emt 0:00:03]} 57. e5 {[%emt 0:00:30]} (57. Rb2+ $16 Kc5 58. Ke3) 57... c3 $11 {[%emt 0:00:56] ...Kc4 is the strong threat.} 58. e6 {[%emt 0:00:38]} (58. Rxc3 $2 {perishes.} Nd5+ 59. Ke4 Nxc3+ $19) 58... Kc4 {[%emt 0:00:30]} 59. Ke5 {[%emt 0:03:22] [#]} (59. Ke4 $11 {remains equal.}) 59... Nc8 $1 {[%emt 0:00:27] Weighted Error Value: White=0.26 (precise) /Black=0.25 (precise)} 0-1

[Event "11th Festival Palmanova-A 2022"]
[Site "Strassoldo"]
[Date "2022.12.10"]
[Round "5.4"]
[White "Kalosha, Zhiulien Oleksii"]
[Black "Savanovic, Maksim"]
[Result "1/2-1/2"]
[ECO "B90"]
[WhiteElo "2092"]
[BlackElo "2154"]
[Annotator "TA"]
[PlyCount "37"]
[EventDate "2022.12.08"]
[EventType "swiss"]
[EventCountry "ITA"]
[SourceTitle "playchess.com"]
[Source "ChessBase"]
[SourceQuality "1"]
[TimeControl "5400+30"]

{[%evp 20,22,22,5,14]} 1. e4 {[%emt 0:04:03]} c5 {[%emt 0:00:04]} 2. Nf3 {[%emt 0:01:20]} d6 {[%emt 0:00:20]} 3. d4 {[%emt 0:00:09]} cxd4 {[%emt 0:00:04]} 4. Nxd4 {[%emt 0:00:06]} Nf6 {[%emt 0:00:03]} 5. Nc3 {[%emt 0:00:09]} a6 {[%emt 0:00:04]} 6. f3 {[%emt 0:00:15]} e5 {[%emt 0:00:06]} 7. Nb3 {[%emt 0:00:14]} Be7 {[%emt 0:00:30]} 8. Be3 {[%emt 0:00:22]} h5 {[%emt 0:01:38]} 9. Qd2 {[%emt 0:00:37]} Be6 {[%emt 0:00:08]} 10. O-O-O {[%emt 0:01:38]} Nbd7 {[%emt 0:00:19]} 11. Kb1 {[%emt 0:00:58]} b5 {[%emt 0:00:49] [#] An uneventful encounter.  11...Rc8 is the modern continuation. B90: Sicilian Najdorf: Unusual White 6th moves, 6 Be3 Ng4 and 6 Be3 e5.} {Predecessor:} 12. Nd5 $146 Bxd5 13. exd5 Nb6 14. Bxb6 Qxb6 15. Na5 Rc8 16. Nc6 Nxd5 17. Nxe7 Nxe7 18. Qxd6 Qxd6 19. Rxd6 {½-½ (51) Caruana,F (2783)-Duda,J (2750) Madrid 2022} 1/2-1/2

[Event "11th Festival Palmanova-A 2022"]
[Site "Strassoldo"]
[Date "2022.12.10"]
[Round "5.5"]
[White "Belli, Giorgio"]
[Black "Ceschia, Ivano"]
[Result "0-1"]
[ECO "B32"]
[WhiteElo "2165"]
[BlackElo "2217"]
[Annotator "TA"]
[PlyCount "80"]
[EventDate "2022.12.08"]
[EventType "swiss"]
[EventCountry "ITA"]
[SourceTitle "playchess.com"]
[Source "ChessBase"]
[SourceQuality "1"]
[TimeControl "5400+30"]

{[%evp 15,80,25,32,-163,-180,-185,-208,-192,-22,-28,0,0,0,-29,0,-51,-34,-86,-84,-155,-138,-163,-156,-266,-254,-263,-255,-245,-232,-235,-243,-445,-352,-337,-265,-296,-266,-293,-289,-29995,-716,-705,-699,-690,-690,-29940,-11318,-5931,-5920,-29988,-775,-29986,-8444,-29984,-29985,-950,-941,-779,-659,-639,-638,-615,-596,-585,-571,-499,-481]} 1. e4 {[%emt 0:00:22]} c5 {[%emt 1:31:00]} 2. Nf3 {[%emt 0:01:01][%cal Bg1f3,Bf3d4,Bd4b5][%mdl 32]} Nc6 {[%emt 0:00:00]} 3. d4 {[%emt 0:00:08]} cxd4 {[%emt 0:00:00]} 4. Nxd4 {[%emt 0:00:04]} e5 {[%emt 0:00:00]} 5. Nb5 {[%emt 0:00:10]} d6 {[%emt 0:00:00]} 6. N1c3 {[%emt 0:00:15]} a6 {[%emt 0:00:00]} 7. Na3 {[%emt 0:00:05]} b5 {[%emt 0:00:00] The old main line.} 8. Nd5 {[%emt 0:00:21]} Nce7 {[%emt 0:00:00]} 9. Bxb5+ $2 {[%emt 0:05:42] B32: Sicilian: Löwenthal and Kalashnikov Variations.} axb5 $19 {[%emt 0:00:00]} 10. Nxb5 {[%emt 0:00:07] [#]} Nxd5 {[%emt 0:00:00]} (10... Qa5+ $2 11. b4 Qxb5 12. Nc7+ Kd7 13. Nxb5 $18) 11. Qxd5 {[%emt 0:03:16] Black is clearly better.} Ra6 {[%emt 0:00:00]} ({Black should play} 11... Rb8 $19 {And now ...Bb7 would win.} 12. a4 Bb7) 12. Qc4 $11 {[%emt 0:00:17] [#]} Kd7 $146 {[%emt 0:00:00] Prevents Nc7.} ({Predecessor:} 12... Rb6 13. Nc7+ Kd7 14. Qxf7+ Qe7 15. Qxe7+ Nxe7 16. Nd5 Nxd5 17. exd5 Ba6 18. b3 Be7 {½-½ (69) Carlsen,E (1805)-Zenaidi,K (1773) Gausdal 2007}) 13. Be3 {[%emt 0:28:14][%cal Oe1c1]} Rc6 {[%emt 0:00:00]} 14. Qxf7+ {[%emt 0:57:28]} (14. Qa4 $5 {[%cal Rb5a7]}) 14... Qe7 {[%emt 0:00:00] Dancing on a razor blade.} 15. Qb3 {[%emt 0:00:00]} (15. Qf3 $11) 15... Qe6 $1 $15 {[%emt 0:00:00]} 16. Qxe6+ {[%emt 0:00:00]} (16. O-O $15) 16... Kxe6 $17 {[%emt 0:00:00] White is on the road to losing.} 17. Kd2 {[%emt 0:00:00]} ({White should try} 17. Na7 Rxc2 18. Kd1 Rxb2 19. Nxc8) 17... Ba6 {[%emt 0:00:00]} 18. Nc3 {[%emt 0:00:00]} Nf6 {[%emt 0:00:00] Against Nd5} 19. b4 {[%emt 0:00:00]} (19. a4 $17) 19... Be7 $19 {[%emt 0:09:00] aiming for ...Rhc8.} 20. b5 {[%emt 0:00:00] [#]} Rxc3 {[%emt 0:00:00][%mdl 512]} 21. Kxc3 {[%emt 0:00:00]} Bxb5 {[%emt 0:00:00]} ({Not} 21... Nxe4+ 22. Kd3 Bb7 23. f3 $11) 22. f3 {[%emt 0:00:00]} d5 {[%emt 0:00:00][%mdl 1024] Black has strong compensation.} 23. Bg5 $2 {[%emt 0:00:00]} (23. Kd2) 23... Rc8+ {[%emt 0:00:00]} (23... dxe4 $2 24. Bxf6 Rc8+ 25. Kb3 gxf6 26. fxe4 $19) 24. Kb2 {[%emt 0:00:00]} Bb4 {[%emt 0:00:00] White must now prevent ...Bc3+.} (24... dxe4 $2 25. Bxf6 gxf6 26. fxe4) 25. Kb3 {[%emt 0:00:00]} Bc3 {[%emt 0:00:00] Hoping for ...Bd4.} 26. Bxf6 {[%emt 0:00:00]} Bxa1 {[%emt 0:00:00] A strong pair of Bishops.} (26... gxf6 $2 {perishes.} 27. a4 Bxa1 28. exd5+ Kxd5 29. Rxa1 $19) (26... Kxf6 $2 {is the wrong capture.} 27. exd5 Bxa1 28. Rxa1 $19) 27. Bxg7 $2 {[%emt 0:00:00]} (27. exd5+ $19 Kxd5 28. Rxa1 gxf6 29. a4 Bc4+ 30. Kb2) 27... Bd4 {[%emt 0:00:00]} (27... Bc4+ $142 28. Kb4 Bd4 29. exd5+ Bxd5 30. Rd1 Rxc2 31. f4 Bc3+ 32. Kc5 Bd2+ 33. Kb5 Bc6+ 34. Ka6 Bxf4 35. a3 Rxg2 36. Bf8 e4 37. Rf1 Ke5 38. Bb4 e3 39. Rc1 Rg6 40. Ka5 Bxh2 41. Be1 Kd4 42. Kb6 Be8+ 43. Ka5 Bd6 44. Rd1+ Ke4 45. a4 e2 46. Rd2 Bc7+ 47. Kb4 Ke3 48. Rb2 Rg4+ 49. Kb3 Bxa4+ 50. Ka3 Be5 51. Bd2+ Kd3 52. Be1 Bxb2+ 53. Kxb2 Rg1 54. Ka3 Rxe1 55. Kb4 Rb1+ 56. Kc5 e1=Q 57. Kd6 Qe8 58. Kd5 Rb6 59. Kc5 Qc6#) 28. c3 {[%emt 0:02:04]} Rxc3+ {[%emt 0:00:00]} 29. Kb4 {[%emt 0:00:06]} Bd3 {[%emt 0:00:00]} 30. exd5+ {[%emt 0:01:22]} Kxd5 {[%emt 0:00:00] ( -> ...Rc4+)} 31. Rd1 {[%emt 0:01:14]} Bc2 {[%emt 0:00:00]} 32. Rd2 {[%emt 0:01:06]} Rc7 {[%emt 0:00:00]} (32... Rc4+ $142 33. Kb5 Ba4+ 34. Ka6 Bc6 35. Rxd4+ exd4 36. Bh6 Ra4+ 37. Kb6 d3 38. a3 Rxa3 39. g4 Ra2 40. h4 d2 41. Bxd2 Rxd2 42. f4 Rb2+ 43. Ka6 Kc5 44. Ka7 Ra2+ 45. Kb8 Kb6 46. h5 Ra8#) 33. Bh8 {[%emt 0:01:05]} Rb7+ {[%emt 0:00:00]} (33... Rc4+ $142 34. Kb5 Ba4+ 35. Ka6 Bc6 36. Rxd4+ exd4 37. Bf6 d3 38. Bg5 Ra4+ 39. Kb6 Rxa2 40. Kc7 Rxg2 41. Bh6 d2 42. Bxd2 Rxd2 43. h4 Kc5 44. h5 Rd7+ 45. Kb8 Kb6 46. Kc8 Re7 47. h6 Re8#) 34. Ka3 {[%emt 0:01:07]} Bg6 {[%emt 0:00:00]} 35. Rd1 {[%emt 0:01:06]} Kc4 {[%emt 0:00:00][%cal Rb7a7] Black is clearly winning.} 36. Rc1+ {[%emt 0:00:00]} Bc3 {[%emt 0:00:00]} 37. Rxc3+ {[%emt 0:00:00]} Kxc3 {[%emt 0:00:00][%cal Rb7a7]} 38. Bxe5+ {[%emt 0:00:02]} Kc2 {[%emt 0:00:00]} 39. g4 {[%emt 0:00:19]} Bf7 {[%emt 0:00:00][%cal Of7a2] Strongly threatening ...Bxa2!} 40. f4 {[%emt 0:00:17] [#]} Bxa2 $1 {[%emt 0:00:04][%mdl 512] Weighted Error Value: White=1.14/Black=0.78} 0-1

[Event "11th Festival Palmanova-A 2022"]
[Site "Strassoldo"]
[Date "2022.12.10"]
[Round "5.6"]
[White "Lumachi, Gabriele"]
[Black "Urbani, Gabriel"]
[Result "1-0"]
[ECO "D35"]
[WhiteElo "2394"]
[BlackElo "2110"]
[Annotator "TA"]
[PlyCount "113"]
[EventDate "2022.12.08"]
[EventType "swiss"]
[EventCountry "ITA"]
[SourceTitle "playchess.com"]
[Source "ChessBase"]
[SourceQuality "1"]
[TimeControl "5400+30"]

{[%evp 26,113,47,54,52,63,48,53,105,43,82,95,119,120,141,81,79,78,105,95,104,101,145,133,140,0,0,0,2,0,159,150,145,124,133,139,116,129,227,234,227,245,248,249,247,235,222,222,239,246,231,218,250,238,287,304,343,294,456,425,387,347,341,268,260,266,257,217,260,278,297,292,453,491,543,531,519,516,604,581,635,627,614,630,690,673,638,586,748,690]} 1. d4 {[%emt 1:31:00]} d5 {[%emt 0:00:46]} 2. c4 {[%emt 0:00:00]} e6 {[%emt 0:00:20]} 3. Nc3 {[%emt 0:00:00]} Nf6 {[%emt 0:00:06]} 4. Nf3 {[%emt 0:00:00]} Be7 {[%emt 0:00:40]} 5. Bf4 {[%emt 0:00:00]} Nbd7 {[%emt 0:02:38][%cal Bb8d7,Bd7f8,Bf8g6][%mdl 32]} 6. e3 {[%emt 0:00:00]} c6 {[%emt 0:02:11]} 7. h3 {[%emt 0:00:00]} O-O {[%emt 0:02:51]} 8. cxd5 {[%emt 0:00:00]} exd5 {[%emt 0:00:26]} 9. Bd3 {[%emt 0:00:00]} Re8 {[%emt 0:00:51]} 10. Qc2 {[%emt 0:00:00]} Nf8 {[%emt 0:03:33]} 11. O-O-O {[%emt 0:00:00]} Ng6 {[%emt 0:03:19]} 12. Bh2 {[%emt 0:00:00]} Bd6 {[%emt 0:02:50]} 13. Bxd6 {[%emt 0:00:00]} Qxd6 {[%emt 0:00:02]} 14. g4 {[%emt 0:00:00] has lost popularity (14.Kb1).} b5 {[%emt 0:04:00] D35: Queen's Gambit Declined: Exchange Variation.} 15. Kb1 {[%emt 0:00:00]} a5 {[%emt 0:05:50]} 16. Rc1 {[%emt 0:00:00] [#]} Bb7 $146 {[%emt 0:11:29]} (16... Ba6 $14) ({Predecessor:} 16... Ba6 17. g5 Nd7 18. h4 Ngf8 19. h5 a4 20. g6 fxg6 21. hxg6 h6 22. Ne2 b4 {½-½ (44) Veselov,Y (2114)-Badelka,O (2431) Cheliabinsk 2022}) 17. Rhg1 {[%emt 0:00:00]} (17. g5 $16) 17... Nd7 {[%emt 0:02:57]} 18. h4 {[%emt 0:00:00]} Nb6 {[%emt 0:01:08]} 19. Ng5 {[%emt 0:00:00][%cal Bf3g5,Bg5h3,Bh3f4][%mdl 32]} (19. Ne2 {simplifies} a4 20. h5 Nf8 21. g5) 19... b4 {[%emt 0:08:28] Against h5} 20. h5 {[%emt 0:00:00]} (20. Ne2 $142 $1) 20... bxc3 $16 {[%emt 0:00:24]} 21. hxg6 {[%emt 0:00:00]} fxg6 {[%emt 0:00:31]} 22. Qxc3 {[%emt 0:00:00]} (22. bxc3 Ba6 23. Bxa6 Rxa6 $15) 22... Qf6 {[%emt 0:04:44] [#]} 23. Nh3 {[%emt 0:00:00]} Rec8 {[%emt 0:03:21]} 24. g5 {[%emt 0:00:00]} Qf7 {[%emt 0:00:40]} 25. Qc5 {[%emt 0:00:00]} (25. Nf4 $16) 25... Ba6 $1 $11 {[%emt 0:04:06]} 26. Bxa6 {[%emt 0:00:00]} Rxa6 {[%emt 0:00:02]} 27. Nf4 $36 {[%emt 0:00:00][%mdl 2048] White is more active.} Qb7 $2 {[%emt 0:03:29] Black is on the road to losing.} (27... Nc4 $11) 28. Qd6 $16 {[%emt 0:00:00] White has more active pieces.} Ra7 {[%emt 0:20:31]} 29. Qe6+ {[%emt 0:00:00]} Qf7 {[%emt 0:00:02]} 30. Rxc6 {[%emt 0:00:00]} Qxe6 {[%emt 0:00:13]} 31. Rxe6 {[%emt 0:00:00]} Rb7 {[%emt 0:02:16] [#]} (31... Nc4 $16) 32. Rc1 $1 $18 {[%emt 0:00:00] aiming for Rxc8+.} Nc4 {[%emt 0:00:34] ( -> ...Nd2+)} 33. Ka1 {[%emt 0:00:00] Black must now prevent b3.} (33. Nxd5 $2 Nd2+ 34. Ka1 Rxc1#) 33... Rcb8 {[%emt 0:02:41]} 34. b3 {[%emt 0:00:00]} ({Less strong is} 34. Nxd5 Rxb2 35. Ra6 (35. Rxc4 $2 Rb1#) 35... Nd2 $16) 34... Nd2 {[%emt 0:00:09][%cal Od2b3]} 35. Rc2 {[%emt 0:00:00]} Ne4 {[%emt 0:00:45]} 36. Ra6 {[%emt 0:00:00] Inhibits a4.} Nxg5 {[%emt 0:00:56]} 37. Rxa5 {[%emt 0:00:00]} ({But not} 37. Nxd5 Nf3 38. Rxa5 h5) 37... Nf3 {[%emt 0:00:56]} 38. Rxd5 {[%emt 0:00:00]} g5 {[%emt 0:01:05]} 39. Ne6 {[%emt 0:00:00]} h6 {[%emt 0:00:12]} 40. Nd8 {[%emt 0:00:00]} Rb6 {[%emt 0:01:53]} 41. Rc7 {[%emt 0:00:00] Hoping for Rdd7.} Ra8 {[%emt 0:01:42]} (41... Kh7 {was worth a try.} 42. Rdd7 Rg6) 42. Rdd7 {[%emt 0:00:00]} Rg6 {[%emt 0:00:20]} 43. Nc6 {[%emt 0:02:06]} Kh7 {[%emt 0:00:47]} 44. Rf7 {[%emt 0:01:45] Against h5} g4 {[%emt 0:00:40]} 45. Ne7 {[%emt 0:04:22] Prevents h5.} Rga6 {[%emt 0:01:32]} 46. a4 {[%emt 0:00:23]} Ng5 {[%emt 0:00:12]} 47. Rf5 {[%emt 0:00:47]} Rb6 {[%emt 0:00:43]} 48. Ka2 {[%emt 0:00:44]} Rab8 {[%emt 0:00:34]} (48... Ne4 $142 49. d5 Nd6) 49. Nc6 {[%emt 0:00:16] White is clearly winning.} Ne6 {[%emt 0:01:02]} 50. Nxb8 {[%emt 0:01:18]} Nxc7 {[%emt 0:00:01][%mdl 4096] Endgame KRN-KRN} 51. Nd7 {[%emt 0:00:18]} Rb7 {[%emt 0:00:43]} 52. Ne5 {[%emt 0:01:14]} Nd5 {[%emt 0:01:02]} 53. Nxg4 {[%emt 0:00:26]} Nc3+ {[%emt 0:00:04]} 54. Ka3 {[%emt 0:00:21]} g6 {[%emt 0:00:05]} 55. Rc5 {[%emt 0:01:16]} Ne4 {[%emt 0:00:02]} 56. Rb5 {[%emt 0:03:07]} Rc7 {[%emt 0:00:17]} 57. Re5 {[%emt 0:00:24] Against h5.   Weighted Error Value: White=0.13 (very precise) /Black=0.28 (precise)} 1-0